{"text_format":"1","workbook":"xlsx","n_sheets":3,"sheets":["データ入力シート","申込一覧表(キャプチャ貼付用) ","高体連学校番号"],"not_rendered":{"charts":0,"images":2,"macros":1,"external_links":0,"defined_names":1,"comments":0,"pivot_tables":0},"unopened":[],"bounds":{"document_bytes":16777216,"sheet_cells":100000,"rows_first":2000,"rows_last":500,"rows_between":2000,"halvings":0,"cell_chars":16384,"cell_head_chars":4096},"cells_cut":0,"cells_raw":0,"read":"whole","date_system":"1900"}

{"sheet":"データ入力シート","index":0,"n_rows":22,"n_cols":18,"rows_kept":22,"cut":false,"hidden":false,"merged":[[21,0,21,2],[15,3,15,5],[16,1,16,2],[16,3,16,5],[17,1,17,2],[17,4,17,5],[18,1,18,2],[19,1,19,2],[18,0,19,0],[15,0,17,0],[15,1,15,2],[7,3,7,5],[9,0,9,2],[10,0,14,0],[10,1,10,2],[10,3,10,5],[11,1,11,2],[11,3,11,5],[12,1,12,2],[12,4,12,5],[13,1,13,2],[13,3,13,4],[14,1,14,2],[14,3,14,5],[8,0,8,2],[1,0,7,0],[7,1,7,2],[4,3,4,9],[5,1,5,2],[5,3,5,5],[6,1,6,2],[6,3,6,5],[4,1,4,2],[1,3,1,9],[2,1,2,2],[2,3,2,4],[3,1,3,2],[3,3,3,4],[1,1,1,2]]}
[]
["所属校\nデータ","正式名称",null,null,null,null,null,null,null,null,null,null,null,null,null,null,"男","教諭"]
[null,"略称",null,null,null,"　※漢字４文字以内",null,null,null,null,null,null,null,null,null,null,"女","助手"]
[null,"略称フリガナ",null,null,null,null,null,null,null,null,null,null,null,null,null,null,null,"外部"]
[null,"所在地"]
[null,"連絡先（電話）"]
[null,"連絡先（FAX）"]
[null,"学校長名"]
["高体連学校番号",null,null,null,"　※シート『高体連学校番号』を確認し入力"]
["日本水泳連盟登録団体番号",null,null,null,"　※『４７』に続く３桁の数字のみを入力",null,null,null,null,null,null,null,null,null,null,null,null,"４７"]
["監督者\nデータ","氏名"]
[null,"フリガナ"]
[null,"性別",null,null,"　※『男』『女』"]
[null,"種別",null,null,null,"　※『教諭』『助手』『外部』"]
[null,"連絡先（携帯番号）"]
["引率者\nデータ","氏名"]
[null,"フリガナ"]
[null,"性別",null,null,"　※『男』or『女』"]
["参加選手\n人数","男子(人)"]
[null,"女子(人)"]
[]
["申込書（認知書）作成年月日",null,null,"令和",null,"年",null,"月",null,"日"]

{"sheet":"申込一覧表(キャプチャ貼付用) ","index":1,"n_rows":94,"n_cols":52,"rows_kept":94,"cut":false,"hidden":false,"merged":[[0,47,12,47],[0,48,12,48],[0,49,12,49],[0,50,12,50],[0,51,12,51],[1,7,2,25],[1,31,2,35],[3,0,3,35],[4,27,5,35],[6,0,6,2],[0,31,0,35],[0,41,12,41],[0,42,12,42],[0,43,12,43],[0,44,12,44],[0,46,12,46],[9,28,9,34],[9,0,9,2],[9,3,9,8],[9,9,9,12],[9,13,9,14],[9,15,9,24],[9,26,9,27],[6,3,6,16],[6,17,6,26],[6,27,6,35],[7,0,8,2],[7,3,8,16],[7,17,8,26],[7,28,7,35],[8,28,8,35],[14,0,15,5],[14,7,15,35],[10,25,12,25],[10,26,12,27],[10,28,12,33],[10,35,12,35],[12,15,12,17],[12,18,12,24],[10,0,12,2],[10,3,12,8],[10,9,12,12],[10,13,12,14],[10,15,11,22],[10,23,11,24],[41,32,41,33],[42,31,42,32],[45,4,45,5],[45,7,45,8],[45,10,45,11],[19,0,39,35],[17,36,19,36],[17,37,19,37],[17,0,18,35],[41,3,41,4],[41,11,41,12],[41,16,41,18],[41,20,41,21],[46,8,46,19],[46,22,46,23],[46,25,46,33],[53,0,53,2],[53,3,53,16],[53,17,53,26],[53,27,53,35],[54,0,55,2],[54,3,55,16],[54,17,55,26],[54,28,54,35],[55,28,55,35],[61,0,62,5],[56,0,56,2],[56,3,56,8],[56,9,56,12],[56,13,56,14],[56,15,56,24],[57,28,59,33],[57,35,59,35],[59,15,59,17],[59,18,59,24],[57,0,59,2],[57,3,59,8],[57,9,59,12],[57,13,59,14],[57,15,58,22],[57,23,58,24],[93,8,93,19],[93,22,93,23],[93,25,93,33],[47,31,47,35],[47,41,59,41],[47,42,59,42],[56,26,56,27],[56,28,56,34],[57,25,59,25],[57,26,59,27],[64,36,66,36],[64,37,66,37],[64,0,65,35],[66,0,86,35],[61,7,62,35],[89,31,89,32],[92,4,92,5],[92,7,92,8],[92,10,92,11],[88,3,88,4],[88,11,88,12],[88,16,88,18],[88,20,88,21],[88,32,88,33],[47,50,59,50],[47,51,59,51],[48,7,49,25],[48,31,49,35],[50,0,50,35],[51,27,52,35],[47,43,59,43],[47,44,59,44],[47,46,59,46],[47,47,59,47],[47,48,59,48],[47,49,59,49]]}
["沖縄県高等学校体育連盟会長　　殿",null,null,null,null,null,null,null,null,null,null,null,null,null,null,null,null,null,null,null,null,null,null,null,null,null,null,null,null,null,null,"高体連\n学校番号",null,null,null,null,null,null,null,null,null,"男子個人種目数","女子個人種目数","男個人記入ミス","女個人記入ミス",null,"男子個人種目数②","女子個人種目数②","男子参加者数①","男子参加者数②","女子参加者数①","女子参加者数②"]
[null,null,null,null,null,null,null,"令和８年度沖縄県高等学校総合体育大会\n水泳競技大会",null,null,null,null,null,null,null,null,null,null,null,null,null,null,null,null,null,null,null,null,null,null,null,{"$f":"データ入力シート!$D$9","v":0}]
[]
["水 泳 競 技 申 込 一 覧 表"]
[null,null,null,null,null,null,null,null,null,null,null,null,null,null,null,null,null,null,null,null,null,null,null,null,null,null,null,"枚中の　   枚目"]
[]
["フリガナ",null,null,{"$f":"PHONETIC(データ入力シート!$D$2)","v":""},null,null,null,null,null,null,null,null,null,null,null,null,null,"学　　　校　　　所　　　在　　　地",null,null,null,null,null,null,null,null,null,"学校連絡先"]
["学　校\n正式名称",null,null,{"$f":"データ入力シート!$D$2","v":0},null,null,null,null,null,null,null,null,null,null,null,null,null,{"$f":"データ入力シート!$D$5","v":0},null,null,null,null,null,null,null,null,null,"TEL",{"$f":"データ入力シート!$D$6","v":0}]
[null,null,null,null,null,null,null,null,null,null,null,null,null,null,null,null,null,null,null,null,null,null,null,null,null,null,null,"FAX",{"$f":"データ入力シート!$D$7","v":0}]
["日本水泳連盟\n登録団体番号",null,null,"学　校　名　略　称",null,null,null,null,null,"略称フリガナ",null,null,null,"フリガナ",null,{"$f":"データ入力シート!$D$12","v":0},null,null,null,null,null,null,null,null,null,"性","フリガナ",null,{"$f":"データ入力シート!$D$17","v":0},null,null,null,null,null,null,"性"]
[{"$f":"CONCATENATE(データ入力シート!$R$10,データ入力シート!$D$10)","v":"４７"},null,null,{"$f":"データ入力シート!$D$3","v":0},null,null,null,null,null,{"$f":"データ入力シート!$D$4","v":0},null,null,null,"監督者",null,{"$f":"データ入力シート!$D$11","v":0},null,null,null,null,null,null,null,{"$f":"データ入力シート!$D$14","v":0},null,{"$f":"データ入力シート!$D$13","v":0},"引率\n責任者",null,{"$f":"データ入力シート!$D$16","v":0},null,null,null,null,null,null,{"$f":"データ入力シート!$D$18","v":0},null,null,null,null,null,null,null,null,null,{"$f":"COUNTIF(#REF!,\"記入ミス\")","v":{"$error":"#REF!"}}]
[]
[null,null,null,null,null,null,null,null,null,null,null,null,null,null,null,"緊急連絡先",null,null,{"$f":"データ入力シート!$D$15","v":0},null,null,null,null,null,null,null,null,null,null,null,null,null,null,null,null,null,null,null,null,null,null,null,null,null,null,"R記入ミス"]
[]
["リレー申込欄",null,null,null,null,null,null,null,null,null,null,null,null,null,null,null,null,null,null,null,null,null,null,null,null,null,null,null,null,null,null,null,null,null,null,null,{"$f":"IF(Z15>M100,1,\"\")","v":""}]
[null,null,null,null,null,null,null,null,null,null,null,null,null,null,null,null,null,null,null,null,null,null,null,null,null,null,null,null,null,null,null,null,null,null,null,null,{"$f":"IF(Z16>M101,1,\"\")","v":""}]
[]
["個人種目　申込欄",null,null,null,null,null,null,null,null,null,null,null,null,null,null,null,null,null,null,null,null,null,null,null,null,null,null,null,null,null,null,null,null,null,null,null,"参加人数","種目数"]
[]
[]
[null,null,null,null,null,null,null,null,null,null,null,null,null,null,null,null,null,null,null,null,null,null,null,null,null,null,null,null,null,null,null,null,null,null,null,null,{"$f":"IF(B21>1,\"1\",\"\")","v":""},{"$f":"SUM(V21:AJ21)","v":0}]
[null,null,null,null,null,null,null,null,null,null,null,null,null,null,null,null,null,null,null,null,null,null,null,null,null,null,null,null,null,null,null,null,null,null,null,null,{"$f":"IF(B22>1,\"1\",\"\")","v":""},{"$f":"SUM(V22:AJ22)","v":0}]
[null,null,null,null,null,null,null,null,null,null,null,null,null,null,null,null,null,null,null,null,null,null,null,null,null,null,null,null,null,null,null,null,null,null,null,null,"",0]
[null,null,null,null,null,null,null,null,null,null,null,null,null,null,null,null,null,null,null,null,null,null,null,null,null,null,null,null,null,null,null,null,null,null,null,null,{"$f":"IF(B24>1,\"1\",\"\")","v":""},0]
[null,null,null,null,null,null,null,null,null,null,null,null,null,null,null,null,null,null,null,null,null,null,null,null,null,null,null,null,null,null,null,null,null,null,null,null,"",0]
[null,null,null,null,null,null,null,null,null,null,null,null,null,null,null,null,null,null,null,null,null,null,null,null,null,null,null,null,null,null,null,null,null,null,null,null,"",0]
[null,null,null,null,null,null,null,null,null,null,null,null,null,null,null,null,null,null,null,null,null,null,null,null,null,null,null,null,null,null,null,null,null,null,null,null,"",0]
[null,null,null,null,null,null,null,null,null,null,null,null,null,null,null,null,null,null,null,null,null,null,null,null,null,null,null,null,null,null,null,null,null,null,null,null,"",0]
[null,null,null,null,null,null,null,null,null,null,null,null,null,null,null,null,null,null,null,null,null,null,null,null,null,null,null,null,null,null,null,null,null,null,null,null,"",0]
[null,null,null,null,null,null,null,null,null,null,null,null,null,null,null,null,null,null,null,null,null,null,null,null,null,null,null,null,null,null,null,null,null,null,null,null,"",0]
[null,null,null,null,null,null,null,null,null,null,null,null,null,null,null,null,null,null,null,null,null,null,null,null,null,null,null,null,null,null,null,null,null,null,null,null,"",0]
[null,null,null,null,null,null,null,null,null,null,null,null,null,null,null,null,null,null,null,null,null,null,null,null,null,null,null,null,null,null,null,null,null,null,null,null,"",0]
[null,null,null,null,null,null,null,null,null,null,null,null,null,null,null,null,null,null,null,null,null,null,null,null,null,null,null,null,null,null,null,null,null,null,null,null,"",0]
[null,null,null,null,null,null,null,null,null,null,null,null,null,null,null,null,null,null,null,null,null,null,null,null,null,null,null,null,null,null,null,null,null,null,null,null,"",0]
[null,null,null,null,null,null,null,null,null,null,null,null,null,null,null,null,null,null,null,null,null,null,null,null,null,null,null,null,null,null,null,null,null,null,null,null,"",0]
[null,null,null,null,null,null,null,null,null,null,null,null,null,null,null,null,null,null,null,null,null,null,null,null,null,null,null,null,null,null,null,null,null,null,null,null,"",0]
[null,null,null,null,null,null,null,null,null,null,null,null,null,null,null,null,null,null,null,null,null,null,null,null,null,null,null,null,null,null,null,null,null,null,null,null,"",0]
[null,null,null,null,null,null,null,null,null,null,null,null,null,null,null,null,null,null,null,null,null,null,null,null,null,null,null,null,null,null,null,null,null,null,null,null,"",0]
[null,null,null,null,null,null,null,null,null,null,null,null,null,null,null,null,null,null,null,null,null,null,null,null,null,null,null,null,null,null,null,null,null,null,null,null,"",0]
[null,null,null,null,null,null,null,null,null,null,null,null,null,null,null,null,null,null,null,null,null,null,null,null,null,null,null,null,null,null,null,null,null,null,null,null,"",0]
[]
[null,"男子","（",{"$f":"データ入力シート!D19","v":0},null,"）","名","＋",null,"女子","（",{"$f":"データ入力シート!D20","v":0},null,"）","名","＝","参加選手合計",null,null,"（",{"$f":"D42+L42","v":0},null,"）","名"]
[]
["①","下記の者は本校在学生徒であり、定期健康診断の結果異常なく、標記大会に出場することを認め参加申込をいたします。"]
["②","個人情報については「沖縄県高体連個人情報保護方針」を承諾した上で参加申込みすることに同意します。"]
[null,null,null,"令和",{"$f":"データ入力シート!$E$22","v":0},null,"年",{"$f":"データ入力シート!$G$22","v":0},null,"月",{"$f":"データ入力シート!$I$22","v":0},null,"日"]
[null,null,null,null,null,null,null,null,{"$f":"データ入力シート!$D$2","v":0},null,null,null,null,null,null,null,null,null,null,null,null,null,"校長",null,null,{"$f":"データ入力シート!$D$8","v":0}]
["沖縄県高等学校体育連盟会長　　殿",null,null,null,null,null,null,null,null,null,null,null,null,null,null,null,null,null,null,null,null,null,null,null,null,null,null,null,null,null,null,"高体連\n学校番号",null,null,null,null,null,null,null,null,null,"男子個人種目数","女子個人種目数","男個人記入ミス","女個人記入ミス",null,"男子個人種目数②","女子個人種目数②","男子参加者数①","男子参加者数②","女子参加者数①","女子参加者数②"]
[null,null,null,null,null,null,null,{"$f":"H2","v":"令和８年度沖縄県高等学校総合体育大会\n水泳競技大会"},null,null,null,null,null,null,null,null,null,null,null,null,null,null,null,null,null,null,null,null,null,null,null,{"$f":"AF2","v":0}]
[]
["水 泳 競 技 申 込 一 覧 表"]
[null,null,null,null,null,null,null,null,null,null,null,null,null,null,null,null,null,null,null,null,null,null,null,null,null,null,null,"枚中の　   枚目"]
[]
["フリガナ",null,null,{"$f":"PHONETIC(データ入力シート!$D$2)","v":""},null,null,null,null,null,null,null,null,null,null,null,null,null,"学　　　校　　　所　　　在　　　地",null,null,null,null,null,null,null,null,null,"学校連絡先"]
["学　校\n正式名称",null,null,{"$f":"データ入力シート!$D$2","v":0},null,null,null,null,null,null,null,null,null,null,null,null,null,{"$f":"データ入力シート!$D$5","v":0},null,null,null,null,null,null,null,null,null,"TEL",{"$f":"データ入力シート!$D$6","v":0}]
[null,null,null,null,null,null,null,null,null,null,null,null,null,null,null,null,null,null,null,null,null,null,null,null,null,null,null,"FAX",{"$f":"データ入力シート!$D$7","v":0}]
["日本水泳連盟\n登録団体番号",null,null,"学　校　名　略　称",null,null,null,null,null,"略称フリガナ",null,null,null,"フリガナ",null,{"$f":"データ入力シート!$D$12","v":0},null,null,null,null,null,null,null,null,null,"性","フリガナ",null,{"$f":"データ入力シート!$D$17","v":0},null,null,null,null,null,null,"性"]
[{"$f":"CONCATENATE(データ入力シート!$R$10,データ入力シート!$D$10)","v":"４７"},null,null,{"$f":"データ入力シート!$D$3","v":0},null,null,null,null,null,{"$f":"データ入力シート!$D$4","v":0},null,null,null,"監督者",null,{"$f":"データ入力シート!$D$11","v":0},null,null,null,null,null,null,null,{"$f":"データ入力シート!$D$14","v":0},null,{"$f":"データ入力シート!$D$13","v":0},"引率\n責任者",null,{"$f":"データ入力シート!$D$16","v":0},null,null,null,null,null,null,{"$f":"データ入力シート!$D$18","v":0},null,null,null,null,null,null,null,null,null,{"$f":"COUNTIF(#REF!,\"記入ミス\")","v":{"$error":"#REF!"}}]
[]
[null,null,null,null,null,null,null,null,null,null,null,null,null,null,null,"緊急連絡先",null,null,{"$f":"データ入力シート!$D$15","v":0},null,null,null,null,null,null,null,null,null,null,null,null,null,null,null,null,null,null,null,null,null,null,null,null,null,null,"R記入ミス"]
[]
["リレー申込欄",null,null,null,null,null,null,null,null,null,null,null,null,null,null,null,null,null,null,null,null,null,null,null,null,null,null,null,null,null,null,null,null,null,null,null,{"$f":"IF(Z62>M147,1,\"\")","v":""}]
[null,null,null,null,null,null,null,null,null,null,null,null,null,null,null,null,null,null,null,null,null,null,null,null,null,null,null,null,null,null,null,null,null,null,null,null,{"$f":"IF(Z63>M148,1,\"\")","v":""}]
[]
["個人種目　申込欄"]
[]
[]
[null,null,null,null,null,null,null,null,null,null,null,null,null,null,null,null,null,null,null,null,null,null,null,null,null,null,null,null,null,null,null,null,null,null,null,null,{"$f":"IF(B68>1,\"2\",\"\")","v":""},{"$f":"SUM(V68:AJ68)","v":0}]
[null,null,null,null,null,null,null,null,null,null,null,null,null,null,null,null,null,null,null,null,null,null,null,null,null,null,null,null,null,null,null,null,null,null,null,null,{"$f":"IF(B69>1,\"2\",\"\")","v":""},{"$f":"SUM(V69:AJ69)","v":0}]
[null,null,null,null,null,null,null,null,null,null,null,null,null,null,null,null,null,null,null,null,null,null,null,null,null,null,null,null,null,null,null,null,null,null,null,null,"",0]
[null,null,null,null,null,null,null,null,null,null,null,null,null,null,null,null,null,null,null,null,null,null,null,null,null,null,null,null,null,null,null,null,null,null,null,null,"",0]
[null,null,null,null,null,null,null,null,null,null,null,null,null,null,null,null,null,null,null,null,null,null,null,null,null,null,null,null,null,null,null,null,null,null,null,null,"",0]
[null,null,null,null,null,null,null,null,null,null,null,null,null,null,null,null,null,null,null,null,null,null,null,null,null,null,null,null,null,null,null,null,null,null,null,null,"",0]
[null,null,null,null,null,null,null,null,null,null,null,null,null,null,null,null,null,null,null,null,null,null,null,null,null,null,null,null,null,null,null,null,null,null,null,null,"",0]
[null,null,null,null,null,null,null,null,null,null,null,null,null,null,null,null,null,null,null,null,null,null,null,null,null,null,null,null,null,null,null,null,null,null,null,null,"",0]
[null,null,null,null,null,null,null,null,null,null,null,null,null,null,null,null,null,null,null,null,null,null,null,null,null,null,null,null,null,null,null,null,null,null,null,null,"",0]
[null,null,null,null,null,null,null,null,null,null,null,null,null,null,null,null,null,null,null,null,null,null,null,null,null,null,null,null,null,null,null,null,null,null,null,null,"",0]
[null,null,null,null,null,null,null,null,null,null,null,null,null,null,null,null,null,null,null,null,null,null,null,null,null,null,null,null,null,null,null,null,null,null,null,null,"",0]
[null,null,null,null,null,null,null,null,null,null,null,null,null,null,null,null,null,null,null,null,null,null,null,null,null,null,null,null,null,null,null,null,null,null,null,null,"",0]
[null,null,null,null,null,null,null,null,null,null,null,null,null,null,null,null,null,null,null,null,null,null,null,null,null,null,null,null,null,null,null,null,null,null,null,null,"",0]
[null,null,null,null,null,null,null,null,null,null,null,null,null,null,null,null,null,null,null,null,null,null,null,null,null,null,null,null,null,null,null,null,null,null,null,null,"",0]
[null,null,null,null,null,null,null,null,null,null,null,null,null,null,null,null,null,null,null,null,null,null,null,null,null,null,null,null,null,null,null,null,null,null,null,null,"",0]
[null,null,null,null,null,null,null,null,null,null,null,null,null,null,null,null,null,null,null,null,null,null,null,null,null,null,null,null,null,null,null,null,null,null,null,null,"",0]
[null,null,null,null,null,null,null,null,null,null,null,null,null,null,null,null,null,null,null,null,null,null,null,null,null,null,null,null,null,null,null,null,null,null,null,null,"",0]
[null,null,null,null,null,null,null,null,null,null,null,null,null,null,null,null,null,null,null,null,null,null,null,null,null,null,null,null,null,null,null,null,null,null,null,null,"",0]
[null,null,null,null,null,null,null,null,null,null,null,null,null,null,null,null,null,null,null,null,null,null,null,null,null,null,null,null,null,null,null,null,null,null,null,null,"",0]
[null,null,null,null,null,null,null,null,null,null,null,null,null,null,null,null,null,null,null,null,null,null,null,null,null,null,null,null,null,null,null,null,null,null,null,null,"",0]
[]
[null,"男子","（",{"$f":"データ入力シート!D66","v":0},null,"）","名","＋",null,"女子","（",{"$f":"データ入力シート!D67","v":0},null,"）","名","＝","参加選手合計",null,null,"（",{"$f":"D89+L89","v":0},null,"）","名"]
[]
["①","下記の者は本校在学生徒であり、定期健康診断の結果異常なく、標記大会に出場することを認め参加申込をいたします。"]
["②","個人情報については「沖縄県高体連個人情報保護方針」を承諾した上で参加申込みすることに同意します。"]
[null,null,null,"令和",{"$f":"データ入力シート!$E$22","v":0},null,"年",{"$f":"データ入力シート!$G$22","v":0},null,"月",{"$f":"データ入力シート!$I$22","v":0},null,"日"]
[null,null,null,null,null,null,null,null,{"$f":"データ入力シート!$D$2","v":0},null,null,null,null,null,null,null,null,null,null,null,null,null,"校長",null,null,{"$f":"データ入力シート!$D$8","v":0}]

{"sheet":"高体連学校番号","index":2,"n_rows":3,"n_cols":1,"rows_kept":3,"cut":false,"hidden":false,"merged":[[1,0,1,8],[2,0,2,8]]}
[]
["沖縄県高体連学校番号はこちらです"]
["日本水泳連盟登録番号（４７～）とは異なりますので注意してください"]